[Event "VII Copa Marcel Duchamp 2024"]
[Site "Montevideo"]
[Date "2024.02.05"]
[Round "3.2"]
[White "Amura, Claudia"]
[Black "Krysa, Leandro"]
[Result "0-1"]
[ECO "A48"]
[WhiteElo "2196"]
[BlackElo "2541"]
[Annotator "TA"]
[PlyCount "136"]
[EventDate "2024.02.05"]
[EventType "swiss"]
[EventCountry "URU"]
[SourceTitle "playchess.com"]
[Source "ChessBase"]
[SourceQuality "1"]
[TimeControl "5400+30"]

{[%evp 25,136,-13,-17,-21,-25,-22,-17,0,1,-16,-4,-8,-9,-34,-33,-39,-52,-43,-45,-62,-64,-61,-44,-32,-21,-39,-14,-16,-12,-12,-30,-87,-88,-89,-82,-84,-81,-80,-75,-72,-76,-73,-58,-67,-66,-60,-59,-77,-65,-61,-50,-60,-43,-75,-84,-102,-99,-104,-104,-112,-112,-112,-112,-112,-112,-164,-127,-157,-154,-163,-164,-422,-446,-422,-204,-204,-193,-244,-29,-30,-30,-30,-30,-30,-30,-31,-8,-9,0,-10,0,0,0,0,0,0,0,-29965,-29966,-29964,-29965,-29968,-29970,-29969,-29971,-29971,-29972,-29971,-29973,-29977,-29977,-29976,-29968]} 1. d4 {[%emt 0:00:07]} Nf6 {[%emt 0:00:14]} 2. Bf4 {[%emt 0:00:21]} g6 {[%emt 0:01:33]} 3. e3 {[%emt 0:00:23]} Bg7 {[%emt 0:00:23]} 4. Nf3 {[%emt 0:00:27]} O-O {[%emt 0:00:25]} 5. Nbd2 {[%emt 0:00:57]} d6 {[%emt 0:01:10]} 6. Be2 {[%emt 0:01:34]} b6 {[%emt 0:02:52] A48: 1 d4 Nf6 2 Nf3 g6: Torre, London and Colle Systems.} 7. c3 {[%emt 0:00:16]} Bb7 {[%emt 0:00:22]} 8. Qc2 {[%emt 0:00:34]} c5 {[%emt 0:05:17]} 9. O-O {[%emt 0:00:28]} Nbd7 {[%emt 0:01:36]} 10. Bg3 {[%emt 0:04:30]} Rc8 {[%emt 0:01:32]} 11. Rad1 {[%emt 0:09:35]} Nh5 $146 {[%emt 0:05:19]} ({Predecessor:} 11... cxd4 12. exd4 Nh5 13. Rfe1 Nxg3 14. hxg3 Nf6 15. Qb1 Qd7 16. Bd3 Rc7 17. Re2 b5 {0-1 Zottis,P (1316)-Da Cruz,E (1615) Florianopolis op 9th 2023 (4)}) 12. Bh4 {[%emt 0:04:38]} cxd4 {[%emt 0:01:25]} 13. Nxd4 {[%emt 0:02:38]} Nhf6 {[%emt 0:01:32]} 14. Bf3 {[%emt 0:03:17]} Qc7 {[%emt 0:09:34]} 15. Rfe1 {[%emt 0:19:31]} a6 {[%emt 0:04:21]} 16. Bxb7 {[%emt 0:02:05]} Qxb7 {[%emt 0:00:08]} 17. e4 {[%emt 0:00:37]} b5 {[%emt 0:04:20]} 18. a3 {[%emt 0:02:54]} a5 {[%emt 0:06:36]} 19. Qd3 {[%emt 0:03:50]} Nc5 {[%emt 0:07:00]} 20. Qe3 {[%emt 0:09:52]} b4 {[%emt 0:06:42]} 21. axb4 {[%emt 0:00:43]} axb4 {[%emt 0:00:36]} 22. f3 {[%emt 0:00:36]} Na4 {[%emt 0:09:20]} 23. Rb1 {[%emt 0:00:37]} Qb6 {[%emt 0:03:19]} 24. Bf2 {[%emt 0:08:09]} e5 {[%emt 0:15:59]} 25. Nc2 {[%emt 0:01:23]} Qxe3 {[%emt 0:01:22]} 26. Nxe3 {[%emt 0:00:06]} bxc3 {[%emt 0:00:13]} 27. bxc3 {[%emt 0:00:05]} Nxc3 {[%emt 0:00:41]} 28. Rb3 {[%emt 0:00:34]} (28. Rb6 $11 {remains equal.}) 28... d5 $17 {[%emt 0:01:50]} 29. exd5 {[%emt 0:01:53]} Nfxd5 {[%emt 0:01:10]} 30. Nxd5 {[%emt 0:02:14]} Nxd5 {[%emt 0:00:04]} 31. Ne4 {[%emt 0:00:06]} Rc2 {[%emt 0:02:37]} 32. g3 {[%emt 0:00:37]} Ra8 {[%emt 0:01:53]} 33. Rb5 {[%emt 0:06:54]} Nc7 {[%emt 0:00:57]} 34. Rc5 {[%emt 0:00:31]} Rxc5 {[%emt 0:01:16]} 35. Nxc5 {[%emt 0:00:05]} Nb5 {[%emt 0:01:47]} 36. Nd3 {[%emt 0:01:58]} Re8 {[%emt 0:00:51]} 37. g4 {[%emt 0:00:35]} f5 {[%emt 0:00:46]} 38. gxf5 {[%emt 0:00:59]} gxf5 {[%emt 0:00:03]} 39. Nc5 {[%emt 0:02:59]} Nc3 {[%emt 0:00:33]} 40. Bd4 {[%emt 0:01:51]} Rc8 {[%emt 0:01:13]} (40... exd4 41. Rxe8+ Kf7 42. Rd8 $18) 41. Bxc3 {[%emt 0:00:58]} Rxc5 {[%emt 0:00:02]} 42. Bb2 {[%emt 0:04:19]} Kf7 {[%emt 0:00:12]} 43. Re2 {[%emt 0:00:04]} Bf6 {[%emt 0:00:14]} 44. Kf2 {[%emt 0:00:16]} Ke6 {[%emt 0:00:18]} 45. Ke3 {[%emt 0:00:07]} (45. Bd4 $17 Rc4 (45... Bh4+ 46. Kg2 $17) 46. Bb6) 45... Bg5+ {[%emt 0:00:35]} 46. Kd3 {[%emt 0:00:17]} Bf4 {[%emt 0:00:11]} 47. Bc3 {[%emt 0:00:59]} Kd5 {[%emt 0:00:15]} 48. Be1 $2 {[%emt 0:00:36]} (48. Bd2 {was called for.}) 48... Rc1 $19 {[%emt 0:01:17]} 49. Bg3 {[%emt 0:01:56]} Bxg3 {[%emt 0:00:42]} (49... Rf1 $142 50. Rf2 (50. Bxf4 $2 Rxf3+ 51. Re3 Rxf4 $19) 50... Rxf2 51. Bxf2 Bxh2) 50. hxg3 $19 {[%emt 0:00:04]} Rg1 {[%emt 0:00:08]} 51. g4 {[%emt 0:00:04]} (51. Ra2 $142) 51... f4 $2 {[%emt 0:02:25]} ({Stronger than} 51... fxg4 52. fxg4 Rg3+ (52... Rxg4 53. Rh2 $11) 53. Kc2 $11) (51... Rg3 $19 52. gxf5 Rxf3+ 53. Kd2 Rxf5) 52. Ra2 {[%emt 0:00:37]} Re1 {[%emt 0:00:10]} 53. Ra5+ {[%emt 0:00:05]} Ke6 {[%emt 0:00:13]} 54. Ra6+ {[%emt 0:00:06]} Kf7 {[%emt 0:00:11]} 55. Kc4 $1 {[%emt 0:01:34]} Rd1 {[%emt 0:01:22]} 56. Rh6 {[%emt 0:04:59]} Rd4+ {[%emt 0:00:42]} 57. Kc5 {[%emt 0:00:00]} Rd3 {[%emt 0:00:38]} 58. Rxh7+ {[%emt 0:00:00]} Kg6 {[%emt 0:00:06]} 59. Rh5 {[%emt 0:00:00]} Rxf3 {[%emt 0:00:55]} (59... Kf6 $5 60. Rh6+ $8 Kf7 $11) 60. Rxe5 {[%emt 0:00:00]} Ra3 {[%emt 0:00:31]} 61. Re8 $2 {[%emt 0:00:00][%mdl 8192] [#]} (61. Kd4 $11) 61... Kg5 $1 {[%emt 0:00:12]} 62. Rg8+ {[%emt 0:00:00]} Kh4 {[%emt 0:00:05]} 63. g5 {[%emt 0:00:26] [#]} Ra5+ $1 {[%emt 0:00:37]} 64. Kd4 {[%emt 0:00:07]} Rxg5 {[%emt 0:00:08]} 65. Rf8 {[%emt 0:00:54]} Kg3 {[%emt 0:00:07]} 66. Ke4 {[%emt 0:00:11]} Rg7 {[%emt 0:00:10]} 67. Re8 {[%emt 0:00:54]} f3 {[%emt 0:00:22]} 68. Ke3 {[%emt 0:00:03]} Kg2 {[%emt 0:00:21]} 0-1

[Event "VII Copa Marcel Duchamp 2024"]
[Site "Montevideo"]
[Date "2024.02.05"]
[Round "3.3"]
[White "Muniz, Rafael"]
[Black "Salinas Herrera, Pablo"]
[Result "0-1"]
[ECO "C50"]
[WhiteElo "2169"]
[BlackElo "2477"]
[Annotator "TA"]
[PlyCount "92"]
[EventDate "2024.02.05"]
[EventType "swiss"]
[EventCountry "URU"]
[SourceTitle "playchess.com"]
[Source "ChessBase"]
[SourceQuality "1"]
[TimeControl "5400+30"]

{[%evp 10,92,20,10,8,12,8,9,15,25,18,13,25,27,29,6,12,11,12,-21,2,-116,39,-62,-50,-45,-52,-68,-49,-63,-55,-64,0,-6,-10,0,-11,-49,-42,-49,-41,-61,-26,-44,-23,-45,-9,-61,-54,-54,-55,-90,-100,-133,-120,-132,-72,-103,-74,-145,-146,-262,-241,-321,-345,-383,-336,-345,-338,-379,-376,-383,-384,-361,-367,-411,-450,-449,-447,-456,-447,-445,-449,-454,-450]} 1. e4 {[%emt 0:00:04]} e5 {[%emt 0:00:46]} 2. Nf3 {[%emt 0:00:12]} Nc6 {[%emt 0:00:09]} 3. Bc4 {[%emt 0:00:55]} Bc5 {[%emt 0:00:09]} 4. O-O {[%emt 0:00:13]} Nf6 {[%emt 0:00:08]} 5. d3 {[%emt 0:00:11]} d6 {[%emt 0:00:13]} 6. a4 {[%emt 0:00:55]} h6 {[%emt 0:03:25]} 7. c3 {[%emt 0:00:55]} a5 {[%emt 0:00:10]} 8. Be3 {[%emt 0:04:15]} Ba7 {[%emt 0:04:31] The position is equal.} 9. Bxa7 {[%emt 0:00:40]} Rxa7 {[%emt 0:00:04]} 10. Nbd2 {[%emt 0:00:34]} Nh5 {[%emt 0:01:26]} 11. Re1 {[%emt 0:04:47]} Qf6 {[%emt 0:04:28]} 12. Nf1 {[%emt 0:07:27]} Bg4 {[%emt 0:03:05]} 13. Re3 {[%emt 0:03:49]} Nf4 {[%emt 0:00:29]} 14. Ng3 {[%emt 0:14:49]} h5 {[%emt 0:05:40] ...h4 would now be deadly.} 15. Ne2 {[%emt 0:05:09] [#]} (15. h3 $11 Bd7 16. h4) 15... Rh6 $2 {[%emt 0:07:45] Black is more active.} (15... h4 $1 $17 {[%cal Rh4h3] White must now prevent ...h3.} 16. Ne1 Nxe2+ (16... Bxe2 17. Rxe2 Nxe2+ 18. Qxe2 $19) 17. Rxe2 Bxe2 18. Qxe2 Ra8) 16. Nxf4 {[%emt 0:04:33]} (16. d4 $14) 16... exf4 $15 {[%emt 0:00:06]} 17. e5 $1 {[%emt 0:04:12]} Nxe5 {[%emt 0:00:44]} 18. Re1 {[%emt 0:01:54]} Kd8 {[%emt 0:13:01] Threatens to win with ...Bxf3.} 19. Bd5 {[%emt 0:01:10]} Nxf3+ {[%emt 0:13:21]} 20. Bxf3 {[%emt 0:00:18]} Be6 {[%emt 0:00:15]} ({Black should try} 20... Qg5 $15) 21. d4 $11 {[%emt 0:09:25][%cal Bd3d4,Bd4d5][%mdl 32]} (21. Bxh5 $2 Qh4 22. Rxe6 Rxh5 $19 (22... Rxe6 23. Bxf7 Rh6 24. h3 $17) (22... fxe6 $2 23. Bf3 $19)) 21... g5 {[%emt 0:00:06]} 22. d5 {[%emt 0:06:53]} (22. Bxh5 $2 Qh8 23. d5 Rxh5 $19) 22... Bd7 {[%emt 0:00:03]} 23. Be4 {[%emt 0:01:46]} Rh8 {[%emt 0:03:17]} 24. Bd3 $1 {[%emt 0:02:01]} h4 {[%emt 0:01:58]} 25. Bb5 {[%emt 0:05:32]} c6 {[%emt 0:00:08]} 26. dxc6 {[%emt 0:00:15]} bxc6 {[%emt 0:00:04]} 27. Bf1 {[%emt 0:00:22]} Re8 {[%emt 0:03:40]} 28. Qd2 {[%emt 0:01:35]} (28. Rxe8+ $1 $11 Bxe8 (28... Kxe8 29. Qb3 $11) 29. b4) 28... Rxe1 $15 {[%emt 0:01:03]} 29. Rxe1 {[%emt 0:00:08]} Kc7 $36 {[%emt 0:00:09][%mdl 2048] Black has good play.} 30. f3 {[%emt 0:05:37]} Be6 {[%emt 0:01:00]} 31. Rd1 {[%emt 0:03:22]} Qe5 {[%emt 0:00:44]} 32. Kh1 {[%emt 0:01:05]} Rb7 {[%emt 0:02:04]} (32... Qd5 $142 33. Qf2 Qc5 (33... Qxd1 34. Qxa7+ Kc8 35. Qa6+ Kd7 36. h3 $11)) 33. b4 $17 {[%emt 0:01:00]} h3 {[%emt 0:02:59]} 34. bxa5 {[%emt 0:01:56]} (34. gxh3 $142 Qd5 35. Qe2) 34... hxg2+ {[%emt 0:00:34]} 35. Bxg2 {[%emt 0:01:22]} (35. Kxg2 $17 Rb3 (35... Qxa5 36. Qxd6+ Kb6 37. Qd8+ Ka7 38. Qxa5+ Kb8 39. Rd8+ Bc8 40. Qe5+ Ka7 41. Rxc8) 36. a6) 35... Qd5 $19 {[%emt 0:00:05] White is weak on the light squares} (35... Qxa5 $2 {perishes.} 36. Qxd6+ Kb6 37. Qd8+ Rc7 38. Rb1+ $18) 36. Qe1 {[%emt 0:04:13]} Qxa5 {[%emt 0:00:04][%cal Oa5e5]} 37. h3 {[%emt 0:00:13]} Qxa4 {[%emt 0:00:28]} 38. Qd2 {[%emt 0:00:16]} Qa3 {[%emt 0:00:48]} 39. Qd4 {[%emt 0:00:21]} Qc5 {[%emt 0:07:53]} 40. Qf6 {[%emt 0:00:14]} Kd7 {[%emt 0:00:14] Prevents Qe7+.} 41. h4 {[%emt 0:02:04]} gxh4 {[%emt 0:00:05] [#] And now ...h3 would win.} 42. Qxh4 {[%emt 0:02:16]} Qxc3 {[%emt 0:00:30]} 43. Qxf4 {[%emt 0:00:58] Black is clearly winning.} d5 {[%emt 0:00:07]} 44. Rc1 {[%emt 0:00:39]} Qh8+ {[%emt 0:01:32]} 45. Kg1 {[%emt 0:00:07]} Qb8 {[%emt 0:00:03]} 46. Qa4 {[%emt 0:00:22]} Qa7+ {[%emt 0:00:04] Weighted Error Value: White=0.29 (precise) /Black=0.11 (very precise) .  Mistake:       	White=5     	Black=3      Inaccurate:     	White=5     	Black=2      OK:         	White=15    	Black=27     Best:        	White=1     	---        Strong:       	White=2     	---} 0-1

[Event "VII Copa Marcel Duchamp 2024"]
[Site "Montevideo"]
[Date "2024.02.05"]
[Round "4.1"]
[White "Carbone, Diego"]
[Black "Meier, Georg"]
[Result "0-1"]
[ECO "A46"]
[WhiteElo "2275"]
[BlackElo "2620"]
[Annotator "RC"]
[PlyCount "98"]
[EventDate "2024.02.05"]
[EventType "swiss"]
[EventCountry "URU"]
[SourceTitle "playchess.com"]
[Source "ChessBase"]
[SourceQuality "1"]
[TimeControl "5400+30"]

1. d4 {[%emt 0:00:03]} e6 {[%emt 0:00:05]} 2. Nf3 {[%emt 0:00:31]} Nf6 {[%emt 0:00:12]} 3. g3 {[%emt 0:00:33]} b5 {[%emt 0:00:56]} 4. Bg2 {[%emt 0:00:34]} d5 {[%emt 0:00:26]} 5. O-O {[%emt 0:00:51]} Be7 {[%emt 0:00:10]} 6. a4 {[%emt 0:01:12]} b4 {[%emt 0:00:08]} 7. c4 {[%emt 0:01:00]} bxc3 {[%emt 0:00:07]} 8. Nxc3 {[%emt 0:00:14]} Nc6 {[%emt 0:18:19]} 9. Bf4 {[%emt 0:06:30]} O-O {[%emt 0:02:43]} 10. Rc1 {[%emt 0:05:35]} Bb7 {[%emt 0:02:17]} 11. Ne5 {[%emt 0:09:33]} Nb4 {[%emt 0:08:42]} 12. Qb3 {[%emt 0:08:09]} Rb8 {[%emt 0:08:33]} 13. a5 {[%emt 0:06:41]} Ba6 {[%emt 0:06:25]} 14. Qa4 {[%emt 0:02:38]} Bd6 {[%emt 0:08:52]} 15. Bg5 {[%emt 0:06:32]} c5 {[%emt 0:03:40]} 16. Nc6 {[%emt 0:13:57]} Nxc6 {[%emt 0:00:41]} 17. dxc5 {[%emt 0:00:15]} Be5 {[%emt 0:07:46]} 18. Qxc6 {[%emt 0:02:03]} Qc8 {[%emt 0:00:23]} 19. Qa4 {[%emt 0:10:09]} Rxb2 {[%emt 0:06:51]} 20. Qa3 {[%emt 0:04:11]} Qb8 {[%emt 0:03:03]} 21. Bf4 {[%emt 0:05:28]} Bxf4 {[%emt 0:02:08]} 22. gxf4 {[%emt 0:02:19]} Rb3 {[%emt 0:02:07]} 23. Qa4 {[%emt 0:01:01]} Bc4 {[%emt 0:04:06]} 24. Rb1 {[%emt 0:01:14]} Rxb1 {[%emt 0:04:40]} 25. Rxb1 {[%emt 0:00:06]} Qxf4 {[%emt 0:00:06]} 26. h3 {[%emt 0:02:52]} g5 {[%emt 0:01:07]} 27. e3 {[%emt 0:07:20]} Qc7 {[%emt 0:06:35]} 28. Qb4 {[%emt 0:02:11]} Rc8 {[%emt 0:00:45]} 29. Na4 {[%emt 0:00:17]} Nd7 {[%emt 0:00:27]} 30. Qb7 {[%emt 0:00:57]} Nxc5 {[%emt 0:02:03]} 31. Nxc5 {[%emt 0:00:31]} Qxc5 {[%emt 0:00:03]} 32. a6 {[%emt 0:00:28]} h6 {[%emt 0:00:45]} 33. Bf3 {[%emt 0:00:12]} Qc7 {[%emt 0:01:17]} 34. e4 {[%emt 0:00:51]} Qxb7 {[%emt 0:00:14]} 35. axb7 {[%emt 0:00:29]} Rb8 {[%emt 0:00:08]} 36. exd5 {[%emt 0:00:14]} Bxd5 {[%emt 0:00:10]} 37. Bxd5 {[%emt 0:00:43]} exd5 {[%emt 0:00:02]} 38. Kf1 {[%emt 0:00:34]} Kf8 {[%emt 0:00:25]} 39. Ke2 {[%emt 0:00:25]} Ke7 {[%emt 0:00:24]} 40. Kd3 {[%emt 0:00:06]} Kd6 {[%emt 0:00:29]} 41. Kd4 {[%emt 0:00:06]} Kc6 {[%emt 0:00:54]} 42. Rc1+ {[%emt 0:00:25]} Kd6 {[%emt 0:00:25]} 43. Rc5 {[%emt 0:01:17]} Rxb7 {[%emt 0:00:07]} 44. Rxd5+ {[%emt 0:00:04]} Ke6 {[%emt 0:00:56]} 45. Ra5 {[%emt 0:00:24]} Kf6 {[%emt 0:01:15]} 46. Ra6+ {[%emt 0:01:01]} Kg7 {[%emt 0:00:30]} 47. Ke4 {[%emt 0:00:25]} Rb3 {[%emt 0:00:16]} 48. f3 {[%emt 0:00:44]} Rb4+ {[%emt 0:00:18]} 49. Ke3 {[%emt 0:00:23]} Rh4 {[%emt 0:00:06]} 0-1

[Event "VII Copa Marcel Duchamp 2024"]
[Site "Montevideo"]
[Date "2024.02.05"]
[Round "4.2"]
[White "Krysa, Leandro"]
[Black "Coppola, Claudio"]
[Result "1-0"]
[ECO "A40"]
[WhiteElo "2541"]
[BlackElo "2250"]
[Annotator "TA"]
[PlyCount "61"]
[EventDate "2024.02.05"]
[EventType "swiss"]
[EventCountry "URU"]
[SourceTitle "playchess.com"]
[Source "ChessBase"]
[SourceQuality "1"]
[TimeControl "5400+30"]

{[%evp 9,61,35,66,61,59,59,52,48,61,37,65,39,112,65,112,100,90,84,144,116,131,136,363,352,633,458,520,514,479,478,613,595,678,679,766,772,767,737,1079,902,872,916,29987,2325,29985,29986,29986,29987,29987,29988,29988,29989,29996,810]} 1. d4 {[%emt 0:00:04]} b6 {[%emt 0:00:04]} 2. c4 {[%emt 0:04:56]} Bb7 {[%emt 0:00:15]} 3. Nf3 {[%emt 0:00:53]} e6 {[%emt 0:00:46]} 4. a3 {[%emt 0:00:44]} d6 {[%emt 0:00:29]} 5. Nc3 {[%emt 0:00:51]} Nd7 {[%emt 0:00:20]} 6. e4 {[%emt 0:00:55]} g6 {[%emt 0:00:34]} 7. Bd3 {[%emt 0:03:21]} Bg7 {[%emt 0:00:17]} 8. Bc2 {[%emt 0:01:25] White is slightly better.} Ne7 {[%emt 0:01:01]} 9. Be3 {[%emt 0:06:13]} h6 {[%emt 0:06:15]} 10. Qd2 {[%emt 0:06:42]} a6 {[%emt 0:00:56]} (10... Ba6 $14) 11. h3 {[%emt 0:05:05] White is more active.} (11. d5 $16) 11... Nc6 {[%emt 0:11:12]} (11... f5 $14) 12. b4 {[%emt 0:02:58]} Qe7 {[%emt 0:03:02]} 13. O-O {[%emt 0:01:58]} g5 {[%emt 0:02:45]} (13... O-O-O $142) 14. Rad1 {[%emt 0:10:52]} Bf6 {[%emt 0:13:20]} 15. Rfe1 {[%emt 0:06:26]} h5 $2 {[%emt 0:09:32] A mistake that costs the game.} (15... O-O-O $16) 16. Nd5 $18 {[%emt 0:03:58]} (16. Nxg5 Nxd4 17. Bxd4 Bxg5 $16) 16... Qd8 {[%emt 0:08:01]} (16... exd5 17. exd5 O-O-O 18. dxc6 Bxc6) 17. Bxg5 {[%emt 0:06:12]} Bxg5 {[%emt 0:13:27]} 18. Nxg5 {[%emt 0:00:20]} (18. Qxg5 Qxg5 19. Nxc7+ Kd8 20. Nxe6+ (20. Nxg5 Kxc7 21. d5 Nd8 $17) 20... fxe6 $11) 18... Rg8 {[%emt 0:02:41] [#]} 19. h4 $1 {[%emt 0:06:04]} e5 {[%emt 0:18:41]} (19... Ne7 20. Qf4) 20. Qe2 {[%emt 0:03:03]} Nxd4 {[%emt 0:00:36] [#]} 21. Rxd4 {[%emt 0:06:23][%mdl 512]} exd4 {[%emt 0:01:35]} (21... Bxd5 22. exd5) 22. Qxh5 {[%emt 0:01:05]} Ne5 {[%emt 0:01:24]} 23. f4 {[%emt 0:05:39]} Ng6 {[%emt 0:01:09]} 24. Qh7 {[%emt 0:03:21][%csl LRf7,LRg8]} Rf8 {[%emt 0:01:24]} 25. Qg7 {[%emt 0:05:36] aiming for Nf6+.} c6 {[%emt 0:01:54]} 26. Nf6+ {[%emt 0:01:08] A dynamic duo of knights.} (26. e5 $142 dxe5 27. Rxe5+ Qe7 28. Nxe7 (28. Rxe7+ Nxe7 29. Nf6+ Kd8 30. Qxf8+ Kc7 31. Qxe7+ Kb8 32. Nxf7 Ka7) 28... Kd8 29. Nxg6 Kc7 30. Nxf8 Rd8 31. Nge6+ (31. Qxf7+ Kb8 32. Re7 Bc8 33. Nge6 Rd6 34. Re8 Rxe6 35. Nxe6 b5 36. Qc7+ Ka8 37. Rxc8#) 31... Kb8 32. Nxd8) 26... Ke7 {[%emt 0:00:02]} 27. e5 {[%emt 0:00:51] White mates.} d3 {[%emt 0:00:17]} 28. exd6+ {[%emt 0:01:08]} Kxd6 {[%emt 0:00:04]} 29. Nxf7+ {[%emt 0:00:11]} Rxf7 {[%emt 0:00:18]} 30. Qxf7 {[%emt 0:00:14][%cal Rf6e4]} Nxf4 {[%emt 0:00:31]} 31. Ne8+ {[%emt 0:00:56] Weighted Error Value: White=0.16 (very precise) /Black=1.02.  Loses game:     	---       	Black=1      Mistake:       	White=1     	Black=4      Inaccurate:     	---       	Black=1      OK:         	White=5     	Black=3} (31. Ne4+ $142 Ke5 32. Qg7+ (32. Qxb7 Ne2+ 33. Kf1 Qf8+ 34. Nf2 dxc2 $18) 32... Ke6 33. Nc5+ Kf5 34. g4#) 1-0

[Event "VII Copa Marcel Duchamp 2024"]
[Site "Montevideo"]
[Date "2024.02.05"]
[Round "4.3"]
[White "Salinas Herrera, Pablo"]
[Black "Andrews, Todd"]
[Result "1-0"]
[ECO "C18"]
[WhiteElo "2477"]
[BlackElo "2133"]
[Annotator "TA"]
[PlyCount "135"]
[EventDate "2024.02.05"]
[EventType "swiss"]
[EventCountry "URU"]
[SourceTitle "playchess.com"]
[Source "ChessBase"]
[SourceQuality "1"]
[TimeControl "5400+30"]

{[%evp 24,135,23,26,25,30,58,49,54,56,84,47,87,86,79,73,79,73,66,29,95,28,105,103,118,97,97,95,77,43,50,41,65,83,64,27,34,29,35,2,106,48,75,22,23,0,8,0,0,0,0,0,0,0,0,0,0,-3,0,0,-2,-3,0,0,0,0,0,0,0,0,22,24,24,27,31,31,31,8,12,8,54,54,54,54,63,63,63,8,8,8,8,8,8,8,8,8,8,0,0,0,0,0,0,0,0,0,0,0,29992,29993,29993,29994,29994,29991]} 1. e4 {[%emt 0:01:21]} e6 {[%emt 0:00:12]} 2. d4 {[%emt 0:00:21]} d5 {[%emt 0:00:06]} 3. Nc3 {[%emt 0:00:06]} Bb4 {[%emt 0:00:10]} 4. e5 {[%emt 0:04:07]} c5 {[%emt 0:00:21]} 5. a3 {[%emt 0:00:11]} Bxc3+ {[%emt 0:00:08]} 6. bxc3 {[%emt 0:00:04]} Ne7 {[%emt 0:00:12]} 7. Qg4 {[%emt 0:00:06]} Qc7 {[%emt 0:00:12]} 8. Bd3 {[%emt 0:00:39]} cxd4 {[%emt 0:02:28]} 9. Ne2 {[%emt 0:00:27]} dxc3 {[%emt 0:04:00]} 10. Qxg7 {[%emt 0:00:20]} Rg8 {[%emt 0:00:07]} 11. Qxh7 {[%emt 0:00:04]} Qxe5 {[%emt 0:12:25]} 12. h4 {[%emt 0:01:11]} Nd7 {[%emt 0:05:51]} 13. Bf4 {[%emt 0:00:48]} Qf6 {[%emt 0:09:04]} 14. Bg5 {[%emt 0:00:09]} Qg7 {[%emt 0:00:08]} 15. Qxg7 {[%emt 0:00:14]} Rxg7 {[%emt 0:00:02]} 16. Nf4 {[%emt 0:04:14]} Rg8 {[%emt 0:17:28]} 17. Nh5 {[%emt 0:05:09]} Rh8 {[%emt 0:02:29]} 18. Nf6+ {[%emt 0:05:39]} Kf8 {[%emt 0:00:10]} 19. h5 {[%emt 0:06:19]} Ng8 {[%emt 0:00:46]} 20. Nxg8 {[%emt 0:16:09]} Kxg8 {[%emt 0:01:37]} 21. Be7 {[%emt 0:01:26]} f6 {[%emt 0:20:47]} (21... b6 $11) 22. f4 {[%emt 0:00:08]} (22. O-O-O $1 $16) 22... Kf7 {[%emt 0:00:55]} (22... f5 $1 $11) 23. Bb4 $16 {[%emt 0:00:25]} d4 {[%emt 0:00:33]} 24. Bg6+ {[%emt 0:01:58]} Kg7 {[%emt 0:00:03]} 25. O-O-O {[%emt 0:00:06]} e5 {[%emt 0:01:02]} 26. Rhe1 {[%emt 0:09:16]} Nf8 {[%emt 0:14:39]} 27. Bxf8+ {[%emt 0:03:05]} Rxf8 {[%emt 0:00:01]} 28. fxe5 {[%emt 0:00:06]} fxe5 {[%emt 0:00:18]} 29. Rxe5 {[%emt 0:00:15]} Bg4 {[%emt 0:00:05]} 30. Rde1 {[%emt 0:00:27]} (30. Rxd4 $2 {leads to mate.} Rf1+) 30... Kh6 {[%emt 0:03:11]} 31. Bd3 {[%emt 0:02:17]} Rf2 {[%emt 0:00:51]} (31... Rg8 $11 {keeps the balance.}) 32. Rd5 {[%emt 0:01:47]} ({Better is} 32. Re7 $1 $16 {[%cal Re7h7] Rh7+ is the strong threat.} Rh8 33. Rxb7) 32... Rxg2 {[%emt 0:01:34] [#]} 33. Rd6+ {[%emt 0:00:48]} (33. Rxd4 Kxh5 34. Rd5+ Kh4 $14) ({White should play} 33. Kb1 $1 $16) 33... Kxh5 $11 {[%emt 0:00:52]} 34. Rh1+ {[%emt 0:00:56]} Kg5 {[%emt 0:00:12]} 35. Rg6+ {[%emt 0:00:58]} Kf4 {[%emt 0:00:04]} 36. Rf1+ {[%emt 0:00:23]} Ke5 {[%emt 0:00:45]} 37. Rg5+ {[%emt 0:00:18]} Kd6 {[%emt 0:00:24]} 38. Be4 {[%emt 0:01:41]} Rg3 {[%emt 0:00:54]} 39. Rd5+ {[%emt 0:03:24]} Ke6 {[%emt 0:00:18]} 40. Rxd4 {[%emt 0:04:07]} Ke5 {[%emt 0:02:02]} 41. Rd3 {[%emt 0:02:15]} Rxd3 {[%emt 0:00:06]} 42. cxd3 {[%emt 0:00:14]} Rc8 {[%emt 0:01:32]} 43. Rf7 {[%emt 0:02:56]} Rc5 {[%emt 0:01:50]} 44. Rxb7 {[%emt 0:01:21]} Ra5 {[%emt 0:00:07]} 45. Rb3 {[%emt 0:00:48]} (45. Rg7 $5 Kf4 $8 46. Re7 $16) 45... Kd4 {[%emt 0:01:23]} 46. Kc2 {[%emt 0:00:14]} Rc5 {[%emt 0:00:05]} 47. Rb4+ {[%emt 0:02:50]} Ke3 {[%emt 0:00:01]} 48. Bg6 {[%emt 0:01:10]} Bf3 {[%emt 0:00:04]} 49. Bf7 {[%emt 0:00:40]} Ra5 {[%emt 0:01:51]} 50. Rb3 {[%emt 0:05:41]} Kd4 {[%emt 0:00:28]} ({Reject} 50... Rf5 51. Bc4 $16) 51. Rxc3 {[%emt 0:00:25]} Rc5 {[%emt 0:00:13]} (51... Ra6 $11 {should be considered.}) 52. Rxc5 $14 {[%emt 0:01:50]} Kxc5 {[%emt 0:00:01]} 53. Kc3 {[%emt 0:00:07]} Bc6 {[%emt 0:00:25]} 54. d4+ {[%emt 0:00:12]} Kb5 $1 {[%emt 0:01:12]} 55. d5 {[%emt 0:00:56]} ({White should try} 55. Bb3 $14 Bb7 56. a4+ Kc6 57. Kb4) 55... Bd7 $11 {[%emt 0:00:02]} 56. Kd4 {[%emt 0:01:52]} Ka4 {[%emt 0:00:13]} 57. Be6 {[%emt 0:01:23]} Be8 {[%emt 0:00:21]} 58. d6 {[%emt 0:04:18]} Kxa3 {[%emt 0:00:12]} 59. Kc5 {[%emt 0:01:12]} a5 {[%emt 0:00:28]} 60. Bd5 {[%emt 0:03:05]} (60. Bc4 $5 Bd7 $8 61. Bd5 $11) 60... a4 {[%emt 0:00:16]} 61. Bc6 {[%emt 0:02:16]} Bxc6 {[%emt 0:00:15]} 62. Kxc6 {[%emt 0:00:04]} Kb2 $1 {[%emt 0:00:06]} 63. d7 {[%emt 0:00:03]} (63. Kc5 $5 a3 $8 64. d7 $11) 63... a3 {[%emt 0:00:04]} 64. d8=Q {[%emt 0:00:06]} (64. Kd5 $5 a2 $8 65. d8=Q $11) 64... a2 {[%emt 0:00:04]} 65. Qb6+ {[%emt 0:00:07]} Ka1 $2 {[%emt 0:00:02][%mdl 8192] [#]} (65... Kc2 $11) 66. Kb5 $1 {[%emt 0:00:06]} Kb2 {[%emt 0:00:23]} 67. Kc4+ {[%emt 0:00:27]} Kc1 {[%emt 0:01:29]} 68. Kb3 {[%emt 0:06:23]} 1-0